[Event "LAT-chW 2020"]
[Site "Riga"]
[Date "2020.08.24"]
[Round "1.1"]
[White "Dombrovska, Stefanija"]
[Black "Rogule, Laura"]
[Result "0-1"]
[ECO "D02"]
[WhiteElo "1572"]
[BlackElo "2297"]
[Annotator "ChessBase"]
[PlyCount "66"]
[EventDate "2020.08.24"]
[EventType "swiss"]
[EventCountry "LAT"]
[SourceTitle "playchess.com"]
[Source "ChessBase"]
[SourceQuality "1"]
[TimeControl "5400+30"]

1. Nf3 {[%emt 0:00:00]} d5 {[%emt 0:00:00]} 2. d4 {[%emt 0:00:00]} Nf6 {[%emt 0:00:12]} 3. g3 {[%emt 0:00:54]} c6 {[%emt 0:00:43]} 4. Bg2 {[%emt 0:00:21]} Bf5 {[%emt 0:02:48]} 5. O-O {[%emt 0:00:55]} Nbd7 {[%emt 0:05:40]} 6. c3 {[%emt 0:04:05]} h6 {[%emt 0:02:26]} 7. h4 {[%emt 0:02:03]} e6 {[%emt 0:05:14]} 8. Qb3 {[%emt 0:03:01]} Qb6 {[%emt 0:03:08]} 9. Qxb6 {[%emt 0:01:14]} axb6 {[%emt 0:00:25]} 10. Nbd2 {[%emt 0:00:47]} b5 {[%emt 0:04:01]} 11. b4 {[%emt 0:04:59]} Nb6 {[%emt 0:11:55]} 12. Bb2 {[%emt 0:02:42]} Na4 {[%emt 0:00:59]} 13. Rab1 {[%emt 0:00:47]} Bd6 {[%emt 0:06:47]} 14. Ne5 {[%emt 0:03:20]} Bxb1 {[%emt 0:01:13]} 15. Rxb1 {[%emt 0:00:05]} Bxe5 {[%emt 0:01:24]} 16. dxe5 {[%emt 0:00:19]} Nd7 {[%emt 0:01:08]} 17. f4 {[%emt 0:00:37]} Ndb6 {[%emt 0:04:09]} 18. Ba1 {[%emt 0:02:46]} Ke7 {[%emt 0:13:13]} 19. Rc1 {[%emt 0:02:19]} Nc4 {[%emt 0:03:22]} 20. Nb3 {[%emt 0:01:07]} Nab6 {[%emt 0:00:54]} 21. e4 {[%emt 0:04:37]} Rxa2 {[%emt 0:01:34]} 22. exd5 {[%emt 0:00:11]} exd5 {[%emt 0:00:58]} 23. Bf1 {[%emt 0:01:40]} Rha8 {[%emt 0:01:32]} 24. Bd3 {[%emt 0:07:30]} R8a3 {[%emt 0:02:05]} 25. Rb1 {[%emt 0:12:30]} Na4 {[%emt 0:02:35]} 26. Bxc4 {[%emt 0:04:25]} bxc4 {[%emt 0:01:30]} 27. Na5 {[%emt 0:02:39]} Rxa1 {[%emt 0:00:16]} 28. Rxa1 {[%emt 0:00:20]} Rxa1+ {[%emt 0:00:05]} 29. Kf2 {[%emt 0:00:11]} Nxc3 {[%emt 0:00:14]} 30. Nxb7 {[%emt 0:00:08]} Na2 {[%emt 0:00:53]} 31. Nd6 {[%emt 0:01:37]} c3 {[%emt 0:01:14]} 32. Nf5+ {[%emt 0:00:25]} Kf8 {[%emt 0:00:28]} 33. Nd4 {[%emt 0:01:30]} Nxb4 {[%emt 0:00:08]} 0-1

[Event "LAT-chW 2020"]
[Site "Riga"]
[Date "2020.08.24"]
[Round "1.2"]
[White "Krumina, Linda"]
[Black "Kuznecova, Marija"]
[Result "1-0"]
[ECO "D05"]
[WhiteElo "2065"]
[BlackElo "1523"]
[Annotator "ChessBase"]
[PlyCount "65"]
[EventDate "2020.08.24"]
[EventType "swiss"]
[EventCountry "LAT"]
[SourceTitle "playchess.com"]
[Source "ChessBase"]
[SourceQuality "1"]
[TimeControl "5400+30"]

1. Nf3 {[%emt 0:00:00]} d5 {[%emt 0:00:00]} 2. d4 {[%emt 0:00:00]} e6 {[%emt 0:00:00]} 3. e3 {[%emt 0:00:08]} Nf6 {[%emt 0:00:36]} 4. Bd3 {[%emt 0:00:27]} Bd6 {[%emt 0:01:19]} 5. b3 {[%emt 0:02:04]} O-O {[%emt 0:03:13]} 6. Bb2 {[%emt 0:03:43]} Re8 {[%emt 0:04:35]} 7. Nbd2 {[%emt 0:01:30]} Nbd7 {[%emt 0:05:03]} 8. Ne5 {[%emt 0:01:29]} c5 {[%emt 0:08:28]} 9. O-O {[%emt 0:01:51]} cxd4 {[%emt 0:05:09]} 10. exd4 {[%emt 0:00:26]} Qc7 {[%emt 0:04:57]} 11. Qe2 {[%emt 0:03:53]} b6 {[%emt 0:07:04]} 12. g4 {[%emt 0:15:21]} Nf8 {[%emt 0:09:56]} 13. g5 {[%emt 0:06:59]} N6d7 {[%emt 0:01:31]} 14. Rae1 {[%emt 0:10:40]} Nxe5 {[%emt 0:06:22]} 15. dxe5 {[%emt 0:00:11]} Bc5 {[%emt 0:00:26]} 16. Qg4 {[%emt 0:04:44]} a5 {[%emt 0:03:41]} 17. Nf3 {[%emt 0:06:56]} Ba6 {[%emt 0:04:44]} 18. h4 {[%emt 0:02:25]} Bb4 {[%emt 0:06:49]} 19. Re2 {[%emt 0:03:50]} Qc5 {[%emt 0:07:27]} 20. Bd4 {[%emt 0:03:54]} Qc6 {[%emt 0:01:22]} 21. h5 {[%emt 0:00:48]} Bxd3 {[%emt 0:01:19]} 22. cxd3 {[%emt 0:00:05]} Qb5 {[%emt 0:00:13]} 23. Rd1 {[%emt 0:04:59]} a4 {[%emt 0:02:10]} 24. Nh4 {[%emt 0:00:18]} axb3 {[%emt 0:01:03]} 25. axb3 {[%emt 0:04:05]} Ra3 {[%emt 0:01:06]} 26. g6 {[%emt 0:00:19]} fxg6 {[%emt 0:00:35]} 27. hxg6 {[%emt 0:00:42]} h6 {[%emt 0:01:34]} 28. Qf4 {[%emt 0:02:11]} Re7 {[%emt 0:02:03]} 29. Rc2 {[%emt 0:02:53]} Rxb3 {[%emt 0:02:17]} 30. Rc8 {[%emt 0:00:15]} Rd7 {[%emt 0:00:28]} 31. Rdc1 {[%emt 0:01:16]} Qa6 {[%emt 0:05:46]} 32. R1c7 {[%emt 0:04:20]} Qb5 {[%emt 0:01:39]} 33. Bc5 {[%emt 0:05:39]} 1-0

[Event "LAT-chW 2020"]
[Site "Riga"]
[Date "2020.08.24"]
[Round "1.3"]
[White "Parhomenko, Anastasija"]
[Black "Gorozhankina, Julia"]
[Result "0-1"]
[ECO "D04"]
[WhiteElo "1417"]
[BlackElo "2035"]
[Annotator "ChessBase"]
[PlyCount "102"]
[EventDate "2020.08.24"]
[EventType "swiss"]
[EventCountry "LAT"]
[SourceTitle "playchess.com"]
[Source "ChessBase"]
[SourceQuality "1"]
[TimeControl "5400+30"]

1. Nf3 {[%emt 0:00:00]} Nf6 {[%emt 0:00:00]} 2. b3 {[%emt 0:00:23]} g6 {[%emt 0:00:10]} 3. Bb2 {[%emt 0:00:38]} d5 {[%emt 0:00:16]} 4. d4 {[%emt 0:00:28]} Bg7 {[%emt 0:00:13]} 5. e3 {[%emt 0:01:20]} O-O {[%emt 0:01:39]} 6. Bd3 {[%emt 0:01:16]} c5 {[%emt 0:02:48]} 7. Nbd2 {[%emt 0:03:39]} b6 {[%emt 0:02:40]} 8. O-O {[%emt 0:04:22]} Nc6 {[%emt 0:02:10]} 9. a3 {[%emt 0:01:10]} Bb7 {[%emt 0:00:58]} 10. Ne5 {[%emt 0:02:27]} Rc8 {[%emt 0:11:38]} 11. f4 {[%emt 0:06:22]} e6 {[%emt 0:03:41]} 12. Rc1 {[%emt 0:15:40]} Nd7 {[%emt 0:06:54]} 13. g4 {[%emt 0:04:48]} f5 {[%emt 0:07:21]} 14. gxf5 {[%emt 0:02:44]} exf5 {[%emt 0:02:21]} 15. Ndf3 {[%emt 0:04:04]} Nf6 {[%emt 0:11:54]} 16. c4 {[%emt 0:03:24]} Nxe5 {[%emt 0:04:14]} 17. dxe5 {[%emt 0:01:38]} Ne4 {[%emt 0:05:09]} 18. Bxe4 {[%emt 0:04:06]} dxe4 {[%emt 0:03:43]} 19. Ne1 {[%emt 0:05:07]} Qe7 {[%emt 0:01:38]} 20. Rf2 {[%emt 0:00:55]} Rcd8 {[%emt 0:05:17]} 21. Qc2 {[%emt 0:00:32]} Rd7 {[%emt 0:03:46]} 22. Rd1 {[%emt 0:01:51]} Rfd8 {[%emt 0:00:13]} 23. Rfd2 {[%emt 0:00:30]} Bc6 {[%emt 0:02:10]} 24. Bc1 {[%emt 0:02:06]} g5 {[%emt 0:01:28]} 25. Rxd7 {[%emt 0:01:05]} Rxd7 {[%emt 0:00:23]} 26. Rxd7 {[%emt 0:00:22]} Qxd7 {[%emt 0:01:44]} 27. Qd2 {[%emt 0:04:29]} Qxd2 {[%emt 0:01:48]} 28. Bxd2 {[%emt 0:00:10]} h6 {[%emt 0:00:19]} 29. Kf2 {[%emt 0:01:56]} Kf7 {[%emt 0:00:17]} 30. Nc2 {[%emt 0:01:54]} Ke6 {[%emt 0:00:38]} 31. b4 {[%emt 0:01:52]} Ba4 {[%emt 0:00:47]} 32. Na1 {[%emt 0:01:07]} Bf8 {[%emt 0:00:55]} 33. b5 {[%emt 0:01:45]} Be7 {[%emt 0:00:54]} 34. Ke2 {[%emt 0:00:29]} Kd7 {[%emt 0:01:07]} 35. Be1 {[%emt 0:00:48]} g4 {[%emt 0:00:57]} 36. Kd2 {[%emt 0:01:06]} h5 {[%emt 0:00:11]} 37. Bf2 {[%emt 0:02:04]} h4 {[%emt 0:01:18]} 38. Nc2 {[%emt 0:00:47]} Kc7 {[%emt 0:01:03]} 39. Ne1 {[%emt 0:00:39]} Kb7 {[%emt 0:01:21]} 40. Ng2 {[%emt 0:00:50]} g3 {[%emt 0:00:23]} 41. Bg1 {[%emt 0:00:47]} Bb3 {[%emt 0:07:21]} 42. Kc3 {[%emt 0:00:39]} Bd1 {[%emt 0:00:09]} 43. Ne1 {[%emt 0:02:11]} gxh2 {[%emt 0:01:24]} 44. Bxh2 {[%emt 0:00:23]} Be2 {[%emt 0:00:54]} 45. Nc2 {[%emt 0:00:45]} h3 {[%emt 0:00:09]} 46. Bg3 {[%emt 0:01:03]} Bh4 {[%emt 0:00:20]} 47. Bh2 {[%emt 0:00:42]} Kc7 {[%emt 0:00:46]} 48. a4 {[%emt 0:02:22]} Bf2 {[%emt 0:00:13]} 49. Na1 {[%emt 0:04:54]} Bxe3 {[%emt 0:00:08]} 50. Nb3 {[%emt 0:00:40]} Bd1 {[%emt 0:01:14]} 51. Nd2 {[%emt 0:00:33]} Bd4# {[%emt 0:00:09]} 0-1

[Event "LAT-chW 2020"]
[Site "Riga"]
[Date "2020.08.24"]
[Round "1.4"]
[White "Golsta, Madara"]
[Black "Kipluka, Anna Krista"]
[Result "1-0"]
[ECO "B11"]
[WhiteElo "1889"]
[BlackElo "1383"]
[Annotator "NA"]
[PlyCount "77"]
[EventDate "2020.08.24"]
[EventType "swiss"]
[EventCountry "LAT"]
[SourceTitle "playchess.com"]
[Source "ChessBase"]
[SourceQuality "1"]
[TimeControl "5400+30"]

1. e4 {[%emt 0:00:00]} c6 {[%emt 0:00:00]} 2. Nf3 {[%emt 0:00:00]} d5 {[%emt 0:00:00]} 3. Nc3 {[%emt 0:00:00]} Bg4 {[%emt 0:02:05]} 4. h3 {[%emt 0:00:10]} Bxf3 {[%emt 0:06:28]} 5. Qxf3 {[%emt 0:00:08]} dxe4 {[%emt 0:01:56]} 6. Nxe4 {[%emt 0:00:10]} e6 {[%emt 0:01:04]} 7. Bc4 {[%emt 0:02:27]} Nd7 {[%emt 0:09:09]} 8. d4 {[%emt 0:00:20]} Ngf6 {[%emt 0:02:52]} 9. Bd2 {[%emt 0:04:30]} Nxe4 {[%emt 0:06:38]} 10. Qxe4 {[%emt 0:00:09]} Nf6 {[%emt 0:00:32]} 11. Qd3 {[%emt 0:00:13]} Bd6 {[%emt 0:01:17]} 12. O-O-O {[%emt 0:00:27]} b5 {[%emt 0:13:22]} 13. Bb3 {[%emt 0:00:35]} a5 {[%emt 0:10:35]} 14. a4 {[%emt 0:01:40]} Qb6 {[%emt 0:03:07]} 15. Rhe1 {[%emt 0:05:52]} O-O {[%emt 0:03:13]} 16. g4 {[%emt 0:17:40]} Rfb8 {[%emt 0:02:46]} 17. axb5 {[%emt 0:02:36]} a4 {[%emt 0:03:46]} 18. Ba2 {[%emt 0:00:29]} cxb5 {[%emt 0:01:50]} 19. g5 {[%emt 0:00:34]} Nh5 {[%emt 0:01:39]} 20. Kb1 {[%emt 0:30:01]} b4 {[%emt 0:03:42]} 21. Bc4 {[%emt 0:00:10]} b3 {[%emt 0:12:02]} 22. c3 {[%emt 0:01:06]} a3 {[%emt 0:01:22]} 23. Bc1 {[%emt 0:12:40]} axb2 {[%emt 0:04:47]} 24. Bxb2 {[%emt 0:00:06]} Qa5 {[%emt 0:01:25]} 25. h4 {[%emt 0:00:12]} Bf4 {[%emt 0:01:37]} 26. Re3 {[%emt 0:00:09]} Bxe3 {[%emt 0:01:28]} 27. fxe3 {[%emt 0:00:05]} g6 {[%emt 0:02:09]} 28. e4 {[%emt 0:00:09]} Qa2+ {[%emt 0:00:37]} 29. Kc1 {[%emt 0:00:04]} Qa4 {[%emt 0:00:34]} 30. Rf1 {[%emt 0:07:51]} Qd7 {[%emt 0:00:55]} 31. Qh3 {[%emt 0:03:18]} Qc6 {[%emt 0:00:45]} 32. Bd3 {[%emt 0:00:56]} Rc8 {[%emt 0:00:51]} 33. Qf3 {[%emt 0:01:35]} Qc7 {[%emt 0:00:40]} 34. d5 {[%emt 0:00:27]} exd5 {[%emt 0:00:54]} 35. exd5 {[%emt 0:00:12]} Rf8 {[%emt 0:00:36]} 36. c4 {[%emt 0:02:29]} Qh2 {[%emt 0:00:29]} 37. Qe4 {[%emt 0:05:04]} Ra2 {[%emt 0:00:31]} 38. Qd4 {[%emt 0:00:06]} Qd6 {[%emt 0:00:37]} 39. Qh8# {[%emt 0:00:07]} 1-0

[Event "LAT-chW 2020"]
[Site "Riga"]
[Date "2020.08.25"]
[Round "2.1"]
[White "Rogule, Laura"]
[Black "Osobskaja, Zinaida"]
[Result "1-0"]
[ECO "E01"]
[WhiteElo "2297"]
[BlackElo "1682"]
[Annotator "ChessBase"]
[PlyCount "87"]
[EventDate "2020.08.24"]
[EventType "swiss"]
[EventCountry "LAT"]
[SourceTitle "playchess.com"]
[Source "ChessBase"]
[SourceQuality "1"]
[TimeControl "5400+30"]

1. c4 {[%emt 0:00:00]} e6 {[%emt 0:00:00]} 2. Nf3 {[%emt 0:02:01]} d5 {[%emt 0:00:01]} 3. d4 {[%emt 0:01:15]} Nf6 {[%emt 0:01:53]} 4. g3 {[%emt 0:01:25]} c6 {[%emt 0:02:16]} 5. Bg2 {[%emt 0:00:20]} Bd6 {[%emt 0:00:59]} 6. O-O {[%emt 0:06:37]} Nbd7 {[%emt 0:01:13]} 7. Nbd2 {[%emt 0:15:27]} h6 {[%emt 0:01:04]} 8. Qc2 {[%emt 0:05:44]} O-O {[%emt 0:00:43]} 9. e4 {[%emt 0:11:35]} dxe4 {[%emt 0:00:20]} 10. Nxe4 {[%emt 0:00:07]} Nxe4 {[%emt 0:00:14]} 11. Qxe4 {[%emt 0:00:05]} Nf6 {[%emt 0:00:20]} 12. Qe2 {[%emt 0:01:32]} Bc7 {[%emt 0:00:43]} 13. b3 {[%emt 0:02:55]} Re8 {[%emt 0:05:00]} 14. Bb2 {[%emt 0:02:39]} Qe7 {[%emt 0:00:47]} 15. Rad1 {[%emt 0:04:36]} Bd7 {[%emt 0:01:20]} 16. Ne5 {[%emt 0:03:11]} Rad8 {[%emt 0:00:42]} 17. f4 {[%emt 0:02:43]} Bc8 {[%emt 0:00:48]} 18. g4 {[%emt 0:07:44]} Nh7 {[%emt 0:01:52]} 19. Nd3 {[%emt 0:08:28]} Qh4 {[%emt 0:02:28]} 20. h3 {[%emt 0:02:20]} f5 {[%emt 0:00:19]} 21. Qf2 {[%emt 0:06:14]} Qxf2+ {[%emt 0:01:01]} 22. Rxf2 {[%emt 0:02:32]} g5 {[%emt 0:03:42]} 23. Re1 {[%emt 0:00:00]} Kf7 {[%emt 0:00:55]} 24. Bf3 {[%emt 0:00:29]} Kg6 {[%emt 0:00:35]} 25. Rfe2 {[%emt 0:00:38]} Nf6 {[%emt 0:04:27]} 26. Ne5+ {[%emt 0:00:19]} Kg7 {[%emt 0:01:51]} 27. Kf2 {[%emt 0:04:58]} Bxe5 {[%emt 0:02:58]} 28. fxe5 {[%emt 0:00:33]} Ng8 {[%emt 0:01:32]} 29. gxf5 {[%emt 0:00:07]} exf5 {[%emt 0:00:19]} 30. d5 {[%emt 0:00:29]} cxd5 {[%emt 0:01:02]} 31. cxd5 {[%emt 0:00:07]} Kg6 {[%emt 0:01:20]} 32. e6 {[%emt 0:04:51]} Nf6 {[%emt 0:06:06]} 33. Bxf6 {[%emt 0:00:00]} Kxf6 {[%emt 0:00:23]} 34. e7 {[%emt 0:00:00]} Rd6 {[%emt 0:00:32]} 35. Bh5 {[%emt 0:00:00]} Bd7 {[%emt 0:01:06]} 36. Bxe8 {[%emt 0:00:00]} Bxe8 {[%emt 0:00:32]} 37. Re6+ {[%emt 0:00:00]} Rxe6 {[%emt 0:00:49]} 38. Rxe6+ {[%emt 0:00:00]} Kf7 {[%emt 0:00:43]} 39. Rxh6 {[%emt 0:02:24]} Kxe7 {[%emt 0:03:33]} 40. Rh7+ {[%emt 0:00:56]} Kd6 {[%emt 0:00:35]} 41. Rxb7 {[%emt 0:00:09]} a5 {[%emt 0:01:41]} 42. Rg7 {[%emt 0:00:20]} Kxd5 {[%emt 0:04:09]} 43. Rxg5 {[%emt 0:00:07]} Ke4 {[%emt 0:01:26]} 44. Rg7 {[%emt 0:00:39]} 1-0

[Event "LAT-chW 2020"]
[Site "Riga"]
[Date "2020.08.25"]
[Round "2.2"]
[White "Ter-Avetisjana, Agnesa Stepania"]
[Black "Krumina, Linda"]
[Result "0-1"]
[ECO "B01"]
[WhiteElo "1683"]
[BlackElo "2065"]
[Annotator "ChessBase"]
[PlyCount "78"]
[EventDate "2020.08.24"]
[EventType "swiss"]
[EventCountry "LAT"]
[SourceTitle "playchess.com"]
[Source "ChessBase"]
[SourceQuality "1"]
[TimeControl "5400+30"]

1. e4 {[%emt 0:00:00]} d5 {[%emt 0:04:07]} 2. exd5 {[%emt 0:00:00]} Nf6 {[%emt 0:00:05]} 3. d4 {[%emt 0:01:48]} Qxd5 {[%emt 0:00:06]} 4. c4 {[%emt 0:03:15]} Qd8 {[%emt 0:26:27]} 5. Nc3 {[%emt 0:05:13]} c6 {[%emt 0:11:34]} 6. h3 {[%emt 0:05:29]} Bf5 {[%emt 0:07:50]} 7. Nf3 {[%emt 0:04:13]} e6 {[%emt 0:01:00]} 8. Bf4 {[%emt 0:05:12]} Bd6 {[%emt 0:03:30]} 9. Bxd6 {[%emt 0:02:54]} Qxd6 {[%emt 0:00:06]} 10. Bd3 {[%emt 0:07:08]} Bxd3 {[%emt 0:08:58]} 11. Qxd3 {[%emt 0:00:02]} Nbd7 {[%emt 0:00:24]} 12. O-O-O {[%emt 0:06:34]} O-O {[%emt 0:03:11]} 13. g4 {[%emt 0:08:04]} Rfd8 {[%emt 0:02:32]} 14. Kb1 {[%emt 0:12:33]} b5 {[%emt 0:04:13]} 15. b3 {[%emt 0:13:31]} bxc4 {[%emt 0:01:02]} 16. Qxc4 {[%emt 0:04:01]} Nb6 {[%emt 0:01:35]} 17. Qe2 {[%emt 0:01:31]} Qb4 {[%emt 0:03:29]} 18. Rc1 {[%emt 0:09:51]} a5 {[%emt 0:01:24]} 19. Ne5 {[%emt 0:02:18]} Nfd5 {[%emt 0:09:27]} 20. Qf3 {[%emt 0:02:49]} Rf8 {[%emt 0:02:07]} 21. Nxc6 {[%emt 0:01:11]} Nxc3+ {[%emt 0:01:25]} 22. Qxc3 {[%emt 0:00:45]} Qb5 {[%emt 0:00:30]} 23. Qc5 {[%emt 0:01:14]} Qd3+ {[%emt 0:00:11]} 24. Qc2 {[%emt 0:00:42]} Qa6 {[%emt 0:00:52]} 25. Rhd1 {[%emt 0:01:22]} Nd5 {[%emt 0:00:59]} 26. Qc4 {[%emt 0:00:37]} Qb6 {[%emt 0:03:00]} 27. Qc5 {[%emt 0:00:13]} Qb7 {[%emt 0:01:06]} 28. Qa3 {[%emt 0:00:59]} a4 {[%emt 0:00:21]} 29. b4 {[%emt 0:00:22]} Rfc8 {[%emt 0:00:58]} 30. Ne5 {[%emt 0:00:33]} Nxb4 {[%emt 0:00:48]} 31. Qb2 {[%emt 0:00:32]} Qe4+ {[%emt 0:00:41]} 32. Ka1 {[%emt 0:00:16]} Nc2+ {[%emt 0:00:29]} 33. Rxc2 {[%emt 0:00:39]} Rxc2 {[%emt 0:00:53]} 34. Qb1 {[%emt 0:00:30]} Rac8 {[%emt 0:00:27]} 35. Nd7 {[%emt 0:00:36]} Qe2 {[%emt 0:00:27]} 36. Nc5 {[%emt 0:00:23]} a3 {[%emt 0:00:33]} 37. Rg1 {[%emt 0:00:35]} Rb2 {[%emt 0:00:14]} 38. Re1 {[%emt 0:00:14]} Rxb1+ {[%emt 0:00:17]} 39. Rxb1 {[%emt 0:00:04]} Qc4 {[%emt 0:00:19]} 0-1

[Event "LAT-chW 2020"]
[Site "Riga"]
[Date "2020.08.25"]
[Round "2.3"]
[White "Gorozhankina, Julia"]
[Black "Vainovska, Valentina"]
[Result "1-0"]
[ECO "D45"]
[WhiteElo "2035"]
[BlackElo "1633"]
[Annotator "ChessBase"]
[PlyCount "93"]
[EventDate "2020.08.24"]
[EventType "swiss"]
[EventCountry "LAT"]
[SourceTitle "playchess.com"]
[Source "ChessBase"]
[SourceQuality "1"]
[TimeControl "5400+30"]

1. d4 {[%emt 0:00:00]} Nf6 {[%emt 0:00:00]} 2. Nf3 {[%emt 0:00:00]} e6 {[%emt 0:00:02]} 3. e3 {[%emt 0:00:19]} d5 {[%emt 0:00:58]} 4. c4 {[%emt 0:00:13]} c6 {[%emt 0:01:02]} 5. Nc3 {[%emt 0:00:36]} Nbd7 {[%emt 0:00:42]} 6. Qc2 {[%emt 0:00:27]} Bd6 {[%emt 0:02:20]} 7. b3 {[%emt 0:00:44]} O-O {[%emt 0:02:31]} 8. Be2 {[%emt 0:00:18]} Re8 {[%emt 0:04:10]} 9. O-O {[%emt 0:02:10]} Qe7 {[%emt 0:05:49]} 10. Bb2 {[%emt 0:02:12]} e5 {[%emt 0:07:11]} 11. cxd5 {[%emt 0:04:56]} Nxd5 {[%emt 0:07:59]} 12. Nxd5 {[%emt 0:03:15]} cxd5 {[%emt 0:00:09]} 13. dxe5 {[%emt 0:01:00]} Nxe5 {[%emt 0:00:25]} 14. Rad1 {[%emt 0:01:52]} Bd7 {[%emt 0:15:41]} 15. Rxd5 {[%emt 0:14:41]} Nxf3+ {[%emt 0:05:04]} 16. Bxf3 {[%emt 0:00:05]} Bc6 {[%emt 0:01:45]} 17. Rh5 {[%emt 0:03:59]} g6 {[%emt 0:07:18]} 18. Qc3 {[%emt 0:03:36]} f6 {[%emt 0:00:17]} 19. Bxc6 {[%emt 0:03:32]} bxc6 {[%emt 0:01:21]} 20. Qc4+ {[%emt 0:03:28]} Kg7 {[%emt 0:02:03]} 21. Rh4 {[%emt 0:07:11]} c5 {[%emt 0:07:43]} 22. Rc1 {[%emt 0:06:12]} Rac8 {[%emt 0:04:42]} 23. Qe2 {[%emt 0:02:34]} Rb8 {[%emt 0:05:21]} 24. Ra4 {[%emt 0:03:21]} Rb7 {[%emt 0:05:27]} 25. Qf3 {[%emt 0:01:36]} Rc7 {[%emt 0:00:53]} 26. g3 {[%emt 0:05:14]} h5 {[%emt 0:01:52]} 27. h4 {[%emt 0:01:23]} Be5 {[%emt 0:00:45]} 28. Bxe5 {[%emt 0:04:21]} Qxe5 {[%emt 0:00:13]} 29. Qf4 {[%emt 0:00:15]} Qxf4 {[%emt 0:02:15]} 30. Rxf4 {[%emt 0:00:05]} Rd8 {[%emt 0:01:41]} 31. Rfc4 {[%emt 0:00:39]} Rd2 {[%emt 0:00:27]} 32. a4 {[%emt 0:00:46]} Rb2 {[%emt 0:00:47]} 33. Rxc5 {[%emt 0:00:47]} Rxc5 {[%emt 0:00:48]} 34. Rxc5 {[%emt 0:00:05]} Rxb3 {[%emt 0:00:06]} 35. Rc7+ {[%emt 0:00:02]} Kh6 {[%emt 0:00:51]} 36. Rxa7 {[%emt 0:00:10]} g5 {[%emt 0:00:14]} 37. hxg5+ {[%emt 0:01:21]} Kxg5 {[%emt 0:00:41]} 38. Kg2 {[%emt 0:00:18]} Rb4 {[%emt 0:01:09]} 39. a5 {[%emt 0:01:10]} Ra4 {[%emt 0:00:30]} 40. Ra8 {[%emt 0:01:37]} h4 {[%emt 0:00:27]} 41. gxh4+ {[%emt 0:00:31]} Rxh4 {[%emt 0:00:24]} 42. f4+ {[%emt 0:01:22]} Kf5 {[%emt 0:00:18]} 43. a6 {[%emt 0:00:11]} Rh7 {[%emt 0:02:25]} 44. a7 {[%emt 0:00:08]} Re7 {[%emt 0:00:21]} 45. Kf3 {[%emt 0:00:09]} Ke6 {[%emt 0:00:16]} 46. e4 {[%emt 0:00:17]} Kf7 {[%emt 0:00:19]} 47. Rh8 {[%emt 0:00:12]} 1-0

[Event "LAT-chW 2020"]
[Site "Riga"]
[Date "2020.08.25"]
[Round "2.4"]
[White "Petrovska, Arina"]
[Black "Golsta, Madara"]
[Result "0-1"]
[ECO "A45"]
[WhiteElo "1637"]
[BlackElo "1889"]
[Annotator "NA"]
[PlyCount "76"]
[EventDate "2020.08.24"]
[EventType "swiss"]
[EventCountry "LAT"]
[SourceTitle "playchess.com"]
[Source "ChessBase"]
[SourceQuality "1"]
[TimeControl "5400+30"]

1. d4 {[%emt 0:04:38]} Nf6 {[%emt 0:00:00]} 2. Bf4 {[%emt 0:00:18]} c5 {[%emt 0:00:00]} 3. c3 {[%emt 0:02:33]} Qb6 {[%emt 0:00:26]} 4. Qc1 {[%emt 0:06:10]} cxd4 {[%emt 0:01:09]} 5. cxd4 {[%emt 0:00:50]} Nc6 {[%emt 0:00:40]} 6. e3 {[%emt 0:00:49]} g6 {[%emt 0:04:15]} 7. a3 {[%emt 0:06:00]} Bg7 {[%emt 0:04:00]} 8. Bd3 {[%emt 0:01:40]} O-O {[%emt 0:01:56]} 9. Ne2 {[%emt 0:02:40]} Nh5 {[%emt 0:03:41]} 10. O-O {[%emt 0:02:50]} Nxf4 {[%emt 0:02:19]} 11. Nxf4 {[%emt 0:00:40]} d6 {[%emt 0:00:42]} 12. Nc3 {[%emt 0:06:02]} Bd7 {[%emt 0:02:54]} 13. b4 {[%emt 0:09:33]} Rac8 {[%emt 0:03:47]} 14. Nfd5 {[%emt 0:08:12]} Qd8 {[%emt 0:03:09]} 15. Qd2 {[%emt 0:08:48]} e6 {[%emt 0:11:29]} 16. Nf4 {[%emt 0:00:24]} e5 {[%emt 0:08:50]} 17. dxe5 {[%emt 0:00:21]} dxe5 {[%emt 0:05:52]} 18. Nfd5 {[%emt 0:00:46]} Be6 {[%emt 0:02:20]} 19. Bb5 {[%emt 0:13:44]} e4 {[%emt 0:13:20]} 20. Rad1 {[%emt 0:06:23]} f5 {[%emt 0:00:40]} 21. Qe2 {[%emt 0:02:26]} Qg5 {[%emt 0:02:43]} 22. Nf4 {[%emt 0:01:38]} Bf7 {[%emt 0:01:14]} 23. Ncd5 {[%emt 0:03:49]} Kh8 {[%emt 0:01:08]} 24. Rd2 {[%emt 0:02:33]} Ne5 {[%emt 0:01:51]} 25. Kh1 {[%emt 0:00:41]} Qh4 {[%emt 0:01:34]} 26. Rfd1 {[%emt 0:02:14]} Ng4 {[%emt 0:00:48]} 27. Nh3 {[%emt 0:01:21]} Be5 {[%emt 0:02:16]} 28. Ndf4 {[%emt 0:00:40]} g5 {[%emt 0:02:03]} 29. f3 {[%emt 0:00:41]} gxf4 {[%emt 0:00:43]} 30. fxg4 {[%emt 0:00:51]} f3 {[%emt 0:01:19]} 31. Qf2 {[%emt 0:01:06]} Qxg4 {[%emt 0:00:22]} 32. Bf1 {[%emt 0:01:08]} fxg2+ {[%emt 0:03:10]} 33. Qxg2 {[%emt 0:00:17]} Qxg2+ {[%emt 0:03:25]} 34. Kxg2 {[%emt 0:00:54]} Rg8+ {[%emt 0:00:40]} 35. Kh1 {[%emt 0:00:31]} Rc3 {[%emt 0:01:09]} 36. Rd7 {[%emt 0:00:03]} Bh5 {[%emt 0:00:26]} 37. R1d2 {[%emt 0:00:33]} Rc1 {[%emt 0:00:39]} 38. Rf2 {[%emt 0:00:42]} Bf3+ {[%emt 0:00:06]} 0-1

[Event "LAT-chW 2020"]
[Site "Riga"]
[Date "2020.08.25"]
[Round "3.1"]
[White "Golsta, Madara"]
[Black "Rogule, Laura"]
[Result "1/2-1/2"]
[ECO "B68"]
[WhiteElo "1889"]
[BlackElo "2297"]
[Annotator "ChessBase"]
[PlyCount "46"]
[EventDate "2020.08.24"]
[EventType "swiss"]
[EventCountry "LAT"]
[SourceTitle "playchess.com"]
[Source "ChessBase"]
[SourceQuality "1"]
[TimeControl "5400+30"]

1. e4 {[%emt 0:00:00]} c5 {[%emt 0:00:00]} 2. Nf3 {[%emt 0:00:00]} Nc6 {[%emt 0:00:00]} 3. d4 {[%emt 0:00:00]} cxd4 {[%emt 0:00:04]} 4. Nxd4 {[%emt 0:00:00]} Nf6 {[%emt 0:00:19]} 5. Nc3 {[%emt 0:00:08]} d6 {[%emt 0:00:19]} 6. Bg5 {[%emt 0:00:17]} e6 {[%emt 0:00:24]} 7. Qd2 {[%emt 0:01:08]} a6 {[%emt 0:00:25]} 8. O-O-O {[%emt 0:01:14]} Bd7 {[%emt 0:00:49]} 9. f4 {[%emt 0:02:33]} Be7 {[%emt 0:08:41]} 10. Be2 {[%emt 0:02:42]} O-O {[%emt 0:37:57]} 11. Bf3 {[%emt 0:03:24]} Nxd4 {[%emt 0:07:54]} 12. Qxd4 {[%emt 0:00:14]} Bc6 {[%emt 0:01:20]} 13. g4 {[%emt 0:16:51]} Rc8 {[%emt 0:03:57]} 14. Qe3 {[%emt 0:06:18]} Qa5 {[%emt 0:05:56]} 15. h4 {[%emt 0:06:25]} Rc7 {[%emt 0:09:31]} 16. Kb1 {[%emt 0:04:46]} Rfc8 {[%emt 0:01:09]} 17. Rd2 {[%emt 0:02:34]} h6 {[%emt 0:09:51]} 18. Rg2 {[%emt 0:05:34]} Kf8 {[%emt 0:00:46]} 19. Bxf6 {[%emt 0:01:02]} Bxf6 {[%emt 0:00:21]} 20. Nd1 {[%emt 0:00:22]} g5 {[%emt 0:07:01]} 21. hxg5 {[%emt 0:16:14]} hxg5 {[%emt 0:00:01]} 22. Rh5 {[%emt 0:00:35]} Ba4 {[%emt 0:00:43]} 23. b3 {[%emt 0:04:09]} Be8 {[%emt 0:01:53]} 1/2-1/2